fUSD/lending_fUSD_20260630
["ID","MTS","AMOUNT","RATE_DAILY","PERIOD"]
[426697383,1782749447000,-15871.90662225,0.000302,2]
[426697349,1782749447000,-300.0,0.00030136,2]
[426697351,1782749447000,-300.0,0.00030136,2]
[426697350,1782749447000,-300.0,0.00030136,2]
[426697360,1782749447000,-300.0,0.00030136,2]
[426697359,1782749447000,-300.0,0.00030136,2]
[426697368,1782749447000,-500.0,0.00030136,15]
[426697366,1782749447000,-500.0,0.00030136,15]
[426697362,1782749447000,-185.67251033,0.00030136,2]
[426697367,1782749447000,-500.0,0.00030136,15]
[426697363,1782749447000,-500.0,0.00030136,15]
[426697369,1782749447000,-500.0,0.00030136,15]
[426697361,1782749447000,-300.0,0.00030136,2]
[426697365,1782749447000,-500.0,0.00030136,15]
[426697352,1782749447000,-300.0,0.00030136,2]
[426697370,1782749447000,-500.0,0.00030136,15]
[426697364,1782749447000,-500.0,0.00030136,15]
[426697377,1782749447000,-152.5325826,0.00030137,2]
[426697379,1782749447000,-921.0,0.0003016,2]
[426697378,1782749447000,-1831.97928048,0.00030137,2]
[426697376,1782749447000,-436.96599853,0.00030137,2]
[426697381,1782749447000,-502.0,0.00030164,14]
[426697375,1782749447000,-218.48299926,0.00030137,2]
[426697371,1782749447000,-500.0,0.00030136,15]
[426697380,1782749447000,-297.0,0.0003016,2]
[426697388,1782749447000,-1094.57677152,0.000303,2]
[426697372,1782749447000,-574.24997663,0.00030136,15]
[426697374,1782749447000,-316.12606361,0.00030137,2]
[426697373,1782749447000,-158.0630318,0.00030137,2]
[426697448,1782749448000,-251.0,0.0003102,2]
[426697457,1782749448000,-1296.58283915,0.00031131,2]
[426697445,1782749448000,-251.0,0.0003102,2]
[426697446,1782749448000,-251.0,0.0003102,2]
[426697447,1782749448000,-251.0,0.0003102,2]
[426697449,1782749448000,-151.09934801,0.00031048,2]
[426697452,1782749448000,-500.0,0.00031084,120]
[426697451,1782749448000,-500.0,0.00031084,120]
[426697462,1782749448000,-10351.40320883,0.000313,2]
[426697453,1782749448000,-500.0,0.00031084,120]
[426697444,1782749448000,-251.0,0.0003102,2]
[426697455,1782749448000,-1293.60437748,0.00031131,2]
[426697454,1782749448000,-502.0,0.00031104,14]
[426697459,1782749448000,-190.96,0.00031189,2]
[426697458,1782749448000,-1274.45023559,0.00031131,2]
[426697456,1782749448000,-1382.5678315,0.00031131,2]
[426697442,1782749448000,-251.0,0.0003102,2]
[426697460,1782749448000,-437.37,0.000312,7]
[426697463,1782749448000,-1459.33353303,0.000313,2]
[426697471,1782749448000,-151.09934801,0.00031368,2]
[426697465,1782749448000,-251.0,0.0003135,2]
[426697472,1782749448000,-341.516641,0.000314,4]
[426697464,1782749448000,-1094.57677152,0.000313,2]
[426697467,1782749448000,-251.0,0.0003135,2]
[426697468,1782749448000,-251.0,0.0003135,2]
[426697461,1782749448000,-152.5325826,0.00031286,10]
[426697450,1782749448000,-599.17,0.0003108,2]
[426697434,1782749448000,-216.58458871,0.000309,10]
[426697440,1782749448000,-800.0,0.00031,2]
[426697470,1782749448000,-685.34,0.00031366,60]
[426697418,1782749448000,-158.0,0.00030759,30]
[426697417,1782749448000,-225.0,0.00030741,30]
[426697415,1782749448000,-158.0,0.00030741,30]
[426697416,1782749448000,-320.0,0.00030741,30]
[426697420,1782749448000,-611.0,0.00030759,30]
[426697419,1782749448000,-154.0,0.00030759,30]
[426697421,1782749448000,-153.0,0.00030759,30]
[426697422,1782749448000,-157.0,0.00030759,30]
[426697425,1782749448000,-154.0,0.00030762,30]
[426697427,1782749448000,-216.92813187,0.0003084,2]
[426697426,1782749448000,-1645.2776185,0.0003084,2]
[426697423,1782749448000,-588.0,0.00030762,30]
[426697424,1782749448000,-160.0,0.00030762,30]
[426697429,1782749448000,-333.83,0.00030863,120]
[426697430,1782749448000,-319.57,0.00030864,120]
[426697431,1782749448000,-500.0,0.00030887,21]
[426697432,1782749448000,-1580.07,0.000309,7]
[426697437,1782749448000,-13000.0,0.00031,2]
[426697438,1782749448000,-1094.57677152,0.00031,2]
[426697433,1782749448000,-2065.71,0.000309,7]
[426697435,1782749448000,-10351.40320883,0.00031,2]
[426697436,1782749448000,-1459.33353303,0.00031,2]
[426697439,1782749448000,-1000.0,0.00031,7]
[426697441,1782749448000,-800.0,0.00031,2]
[426697443,1782749448000,-251.0,0.0003102,2]
[426697428,1782749448000,-150.0,0.00030841,2]
[426697466,1782749448000,-251.0,0.0003135,2]
[426697475,1782749448000,-2812.78080352,0.00031507,120]
[426697504,1782749448000,-14621.65795589,0.00032,2]
[426697501,1782749448000,-12931.9971,0.00032,2]
[426697499,1782749448000,-39332.86561822,0.000319,7]
[426697503,1782749448000,-1771.56621233,0.00032,2]
[426697508,1782749448000,-502.0,0.00032045,15]
[426697509,1782749448000,-2065.71,0.000321,7]
[426697507,1782749448000,-151.09934801,0.00032008,2]
[426697511,1782749448000,-10351.40320883,0.000322,2]
[426697510,1782749448000,-3553.21999901,0.00032112,5]
[426697512,1782749448000,-1580.07,0.000322,7]
[426697516,1782749448000,-171932.27160954,0.0003226,2]
[426697513,1782749448000,-1510.23,0.00032232,7]
[426697514,1782749448000,-460.04,0.00032232,7]
[426697517,1782749448000,-151.0,0.0003226,7]
[426697520,1782749448000,-151.0,0.0003226,7]
[426697518,1782749448000,-155.479638,0.0003226,7]
[426697519,1782749448000,-151.0,0.0003226,7]
[426697521,1782749448000,-151.0,0.0003226,7]
[426697523,1782749448000,-151.0,0.0003226,7]
[426697526,1782749448000,-151.0,0.0003226,7]
[426697525,1782749448000,-151.0,0.0003226,7]
[426697527,1782749448000,-289.98,0.00032299,30]
[426697524,1782749448000,-151.0,0.0003226,7]
[426697522,1782749448000,-151.0,0.0003226,7]
[426697473,1782749448000,-800.0,0.000315,2]
[426697506,1782749448000,-800.0,0.00032,5]
[426697505,1782749448000,-800.0,0.00032,5]
[426697515,1782749448000,-13798.21,0.00032232,7]
[426697502,1782749448000,-5000.0,0.00032,2]
[426697500,1782749448000,-177.38,0.00031963,2]
[426697474,1782749448000,-800.0,0.000315,2]
[426697477,1782749448000,-219.95609651,0.00031614,14]
[426697476,1782749448000,-10351.40320883,0.000316,2]
[426697478,1782749448000,-333.83,0.00031685,120]
[426697479,1782749448000,-151.09934801,0.00031688,2]
[426697480,1782749448000,-369.67632586,0.00031734,2]
[426697481,1782749448000,-282.89056048,0.00031734,2]
[426697483,1782749448000,-155.0,0.00031741,30]
[426697482,1782749448000,-273.33010035,0.00031737,2]
[426697484,1782749448000,-159.0,0.00031741,30]
[426697485,1782749448000,-320.0,0.00031741,30]
[426697487,1782749448000,-158.0,0.00031759,30]
[426697469,1782749448000,-251.0,0.0003135,2]
[426697498,1782749448000,-10351.40320883,0.000319,2]
[426697497,1782749448000,-322.12,0.0003186,3]
[426697492,1782749448000,-588.0,0.00031762,30]
[426697496,1782749448000,-500.0,0.00031814,23]
[426697494,1782749448000,-154.0,0.00031762,30]
[426697495,1782749448000,-286.40789184,0.000318,120]
[426697491,1782749448000,-157.0,0.00031759,30]
[426697488,1782749448000,-154.0,0.00031759,30]
[426697486,1782749448000,-225.0,0.00031741,30]
[426697490,1782749448000,-153.0,0.00031759,30]
[426697489,1782749448000,-611.0,0.00031759,30]
[426697493,1782749448000,-160.0,0.00031762,30]
[426697568,1782749449000,-500.0,0.00032876,2]
[426697565,1782749449000,-500.0,0.00032876,2]
[426697564,1782749449000,-500.0,0.00032876,2]
[426697559,1782749449000,-500.0,0.00032876,2]
[426697566,1782749449000,-500.0,0.00032876,2]
[426697567,1782749449000,-500.0,0.00032876,2]
[426697558,1782749449000,-500.0,0.00032876,2]
[426697562,1782749449000,-500.0,0.00032876,2]
[426697563,1782749449000,-500.0,0.00032876,2]
[426697569,1782749449000,-500.0,0.00032876,2]
[426697561,1782749449000,-500.0,0.00032876,2]
[426697560,1782749449000,-500.0,0.00032876,2]
[426697570,1782749449000,-500.0,0.00032876,2]
[426697575,1782749449000,-425.96581433,0.00032876,2]
[426697572,1782749449000,-324.68731979,0.00032876,2]
[426697576,1782749449000,-883.95353797,0.00032876,2]
[426697573,1782749449000,-500.0,0.00032876,2]
[426697574,1782749449000,-500.0,0.00032876,2]
[426697580,1782749449000,-883.95353797,0.00032876,2]
[426697578,1782749449000,-883.95353797,0.00032876,2]
[426697579,1782749449000,-883.95353797,0.00032876,2]
[426697577,1782749449000,-883.95353797,0.00032876,2]
[426697592,1782749449000,-839.75586106,0.00032876,2]
[426697581,1782749449000,-883.95353797,0.00032876,2]
[426697582,1782749449000,-883.95353797,0.00032876,2]
[426697583,1782749449000,-257.60755623,0.00032876,2]
[426697571,1782749449000,-500.0,0.00032876,2]
[426697557,1782749449000,-471.55124022,0.00032876,2]
[426697532,1782749449000,-150.0,0.00032383,2]
[426697552,1782749449000,-4942.63368594,0.000328,2]
[426697531,1782749449000,-6294.41763374,0.0003233,120]
[426697529,1782749449000,-266.56984769,0.00032301,2]
[426697530,1782749449000,-151.09934801,0.00032328,2]
[426697528,1782749449000,-914.53051847,0.000323,2]
[426697542,1782749449000,-320.0,0.00032741,30]
[426697543,1782749449000,-225.0,0.00032741,30]
[426697544,1782749449000,-158.0,0.00032759,30]
[426697533,1782749449000,-10351.40320883,0.000325,2]
[426697534,1782749449000,-800.0,0.000325,5]
[426697538,1782749449000,-151.09934801,0.00032649,2]
[426697535,1782749449000,-800.0,0.000325,5]
[426697540,1782749449000,-155.0,0.00032741,30]
[426697554,1782749449000,-320.71,0.00032858,3]
[426697539,1782749449000,-188.59370699,0.00032734,7]
[426697536,1782749449000,-333.83,0.00032507,120]
[426697541,1782749449000,-159.0,0.00032741,30]
[426697545,1782749449000,-164.0,0.00032759,30]
[426697550,1782749449000,-160.0,0.00032762,30]
[426697547,1782749449000,-153.0,0.00032759,30]
[426697549,1782749449000,-588.0,0.00032762,30]
[426697548,1782749449000,-157.0,0.00032759,30]
[426697586,1782749449000,-3000.0,0.00032876,2]
[426697546,1782749449000,-611.0,0.00032759,30]
[426697553,1782749449000,-37893.30007821,0.00032848,5]
[426697556,1782749449000,-500.0,0.00032876,14]
[426697551,1782749449000,-154.0,0.00032762,30]
[426697537,1782749449000,-152.0,0.00032644,7]
[426697589,1782749449000,-3000.0,0.00032876,2]
[426697555,1782749449000,-152.5325826,0.00032861,12]
[426697587,1782749449000,-3000.0,0.00032876,2]
[426697620,1782749449000,-1000.0,0.00032877,10]
[426697621,1782749449000,-1000.0,0.00032877,10]
[426697626,1782749449000,-1000.0,0.00032877,10]
[426697624,1782749449000,-1000.0,0.00032877,10]
[426697623,1782749449000,-1000.0,0.00032877,10]
[426697622,1782749449000,-1000.0,0.00032877,10]
[426697625,1782749449000,-1000.0,0.00032877,10]
[426697627,1782749449000,-1000.0,0.00032877,10]
[426697628,1782749449000,-1000.0,0.00032877,10]
[426697631,1782749449000,-1000.0,0.00032877,10]
[426697632,1782749449000,-1000.0,0.00032877,10]
[426697630,1782749449000,-1000.0,0.00032877,10]
[426697617,1782749449000,-1000.0,0.00032877,10]
[426697633,1782749449000,-1000.0,0.00032877,10]
[426697638,1782749449000,-1000.0,0.00032877,10]
[426697637,1782749449000,-1000.0,0.00032877,10]
[426697629,1782749449000,-1000.0,0.00032877,10]
[426697634,1782749449000,-1000.0,0.00032877,10]
[426697636,1782749449000,-1000.0,0.00032877,10]
[426697641,1782749449000,-1000.0,0.00032877,10]
[426697640,1782749449000,-1000.0,0.00032877,10]
[426697645,1782749449000,-1000.0,0.00032877,10]
[426697642,1782749449000,-1000.0,0.00032877,10]
[426697643,1782749449000,-1000.0,0.00032877,10]
[426697644,1782749449000,-1000.0,0.00032877,10]
[426697588,1782749449000,-3000.0,0.00032876,2]
[426697635,1782749449000,-1000.0,0.00032877,10]
[426697618,1782749449000,-1000.0,0.00032877,10]
[426697639,1782749449000,-1000.0,0.00032877,10]
[426697616,1782749449000,-1000.0,0.00032877,10]
[426697619,1782749449000,-1000.0,0.00032877,10]
[426697591,1782749449000,-839.75586106,0.00032876,2]
[426697584,1782749449000,-500.0,0.00032876,2]
[426697585,1782749449000,-3000.0,0.00032876,2]
[426697590,1782749449000,-2066.7244798,0.00032876,2]
[426697594,1782749449000,-839.75586106,0.00032876,2]
[426697596,1782749449000,-500.0,0.00032876,2]
[426697595,1782749449000,-500.0,0.00032876,2]
[426697597,1782749449000,-500.0,0.00032876,2]
[426697598,1782749449000,-500.0,0.00032876,2]
[426697601,1782749449000,-500.0,0.00032876,2]
[426697600,1782749449000,-448.72866591,0.00032876,2]
[426697602,1782749449000,-500.0,0.00032876,2]
[426697593,1782749449000,-839.75586106,0.00032876,2]
[426697603,1782749449000,-500.0,0.00032876,2]
[426697599,1782749449000,-500.0,0.00032876,2]
[426697611,1782749449000,-1000.0,0.00032877,10]
[426697613,1782749449000,-1000.0,0.00032877,10]
[426697615,1782749449000,-1000.0,0.00032877,10]
[426697612,1782749449000,-1000.0,0.00032877,10]
[426697607,1782749449000,-164.7067138,0.00032876,2]
[426697614,1782749449000,-1000.0,0.00032877,10]
[426697609,1782749449000,-197.90751618,0.00032876,2]
[426697606,1782749449000,-500.0,0.00032876,2]
[426697610,1782749449000,-500.0,0.00032876,2]
[426697605,1782749449000,-500.0,0.00032876,2]
[426697604,1782749449000,-500.0,0.00032876,2]
[426697608,1782749449000,-500.0,0.00032876,2]
[426697669,1782749450000,-500.0,0.00033,20]
[426697672,1782749450000,-500.0,0.00033,20]
[426697671,1782749450000,-500.0,0.00033,20]
[426697673,1782749450000,-500.0,0.00033,20]
[426697674,1782749450000,-500.0,0.00033,20]
[426697675,1782749450000,-500.0,0.00033,20]
[426697677,1782749450000,-500.0,0.00033,20]
[426697676,1782749450000,-500.0,0.00033,20]
[426697678,1782749450000,-500.0,0.00033,20]
[426697687,1782749450000,-500.0,0.00033,20]
[426697680,1782749450000,-500.0,0.00033,20]
[426697682,1782749450000,-500.0,0.00033,20]
[426697681,1782749450000,-500.0,0.00033,20]
[426697679,1782749450000,-500.0,0.00033,20]
[426697683,1782749450000,-500.0,0.00033,20]
[426697684,1782749450000,-500.0,0.00033,20]
[426697686,1782749450000,-500.0,0.00033,20]
[426697668,1782749450000,-500.0,0.00033,20]
[426697688,1782749450000,-500.0,0.00033,20]
[426697685,1782749450000,-500.0,0.00033,20]
[426697670,1782749450000,-500.0,0.00033,20]
[426697653,1782749450000,-800.0,0.000329,12]
[426697665,1782749450000,-500.0,0.00033,20]
[426697689,1782749450000,-500.0,0.00033,20]
[426697652,1782749450000,-1277.0,0.000329,12]
[426697651,1782749450000,-10351.40320883,0.000329,2]
[426697650,1782749450000,-500.0,0.00032877,2]
[426697646,1782749450000,-1000.0,0.00032877,10]
[426697647,1782749450000,-455.0,0.00032877,10]
[426697648,1782749450000,-151.0,0.00032877,7]
[426697649,1782749450000,-500.0,0.00032877,2]
[426697655,1782749450000,-202.91070771,0.00032929,11]
[426697667,1782749450000,-500.0,0.00033,20]
[426697654,1782749450000,-193.0,0.00032916,3]
[426697662,1782749450000,-500.0,0.00033,20]
[426697657,1782749450000,-151.09934801,0.00032969,2]
[426697660,1782749450000,-500.0,0.00033,20]
[426697659,1782749450000,-500.0,0.00033,20]
[426697656,1782749450000,-598.0,0.00032945,3]
[426697661,1782749450000,-500.0,0.00033,20]
[426697658,1782749450000,-502.0,0.00032985,16]
[426697663,1782749450000,-500.0,0.00033,20]
[426697666,1782749450000,-500.0,0.00033,20]
[426697664,1782749450000,-500.0,0.00033,20]
[426697691,1782749450000,-500.0,0.00033,20]
[426697690,1782749450000,-500.0,0.00033,20]
[426697692,1782749450000,-500.0,0.00033,20]
[426697718,1782749450000,-500.0,0.00033,20]
[426697717,1782749450000,-500.0,0.00033,20]
[426697721,1782749450000,-500.0,0.00033,20]
[426697720,1782749450000,-500.0,0.00033,20]
[426697723,1782749450000,-500.0,0.00033,20]
[426697724,1782749450000,-500.0,0.00033,20]
[426697722,1782749450000,-500.0,0.00033,20]
[426697725,1782749450000,-500.0,0.00033,20]
[426697733,1782749450000,-9999.99999901,0.000331,2]
[426697712,1782749450000,-500.0,0.00033,20]
[426697732,1782749450000,-800.0,0.00033,5]
[426697731,1782749450000,-800.0,0.00033,5]
[426697729,1782749450000,-37678.82384476,0.00033,10]
[426697727,1782749450000,-440.05,0.00033,20]
[426697728,1782749450000,-437.37,0.00033,7]
[426697734,1782749450000,-10351.40320883,0.000332,2]
[426697735,1782749450000,-40000.0,0.000332,2]
[426697736,1782749450000,-154.6391,0.00033241,2]
[426697737,1782749450000,-151.09934801,0.00033289,2]
[426697694,1782749450000,-500.0,0.00033,20]
[426697726,1782749450000,-500.0,0.00033,20]
[426697714,1782749450000,-500.0,0.00033,20]
[426697730,1782749450000,-216.58458871,0.00033,7]
[426697716,1782749450000,-500.0,0.00033,20]
[426697713,1782749450000,-500.0,0.00033,20]
[426697693,1782749450000,-500.0,0.00033,20]
[426697697,1782749450000,-500.0,0.00033,20]
[426697698,1782749450000,-500.0,0.00033,20]
[426697696,1782749450000,-500.0,0.00033,20]
[426697700,1782749450000,-500.0,0.00033,20]
[426697699,1782749450000,-500.0,0.00033,20]
[426697701,1782749450000,-500.0,0.00033,20]
[426697703,1782749450000,-500.0,0.00033,20]
[426697702,1782749450000,-500.0,0.00033,20]
[426697695,1782749450000,-500.0,0.00033,20]
[426697709,1782749450000,-500.0,0.00033,20]
[426697707,1782749450000,-500.0,0.00033,20]
[426697708,1782749450000,-500.0,0.00033,20]
[426697705,1782749450000,-500.0,0.00033,20]
[426697704,1782749450000,-500.0,0.00033,20]
[426697710,1782749450000,-500.0,0.00033,20]
[426697719,1782749450000,-500.0,0.00033,20]
[426697711,1782749450000,-500.0,0.00033,20]
[426697706,1782749450000,-500.0,0.00033,20]
[426697715,1782749450000,-500.0,0.00033,20]
[426697780,1782749451000,-158.0,0.00033759,30]
[426697778,1782749451000,-320.0,0.00033741,30]
[426697775,1782749451000,-1883.96,0.00033735,2]
[426697774,1782749451000,-1000.0,0.00033735,2]
[426697781,1782749451000,-611.0,0.00033759,30]
[426697777,1782749451000,-159.0,0.00033741,30]
[426697771,1782749451000,-1000.0,0.00033735,2]
[426697783,1782749451000,-157.0,0.00033759,30]
[426697782,1782749451000,-153.0,0.00033759,30]
[426697772,1782749451000,-1825.93,0.00033735,2]
[426697776,1782749451000,-162.40577252,0.00033741,30]
[426697767,1782749451000,-158.71,0.00033734,120]
[426697773,1782749451000,-1000.0,0.00033735,2]
[426697779,1782749451000,-225.0,0.00033741,30]
[426697792,1782749451000,-300.0,0.00033765,2]
[426697787,1782749451000,-300.0,0.00033765,2]
[426697786,1782749451000,-154.0,0.00033762,30]
[426697796,1782749451000,-300.0,0.00033765,2]
[426697791,1782749451000,-300.0,0.00033765,2]
[426697788,1782749451000,-311.22255108,0.00033765,2]
[426697798,1782749451000,-300.0,0.00033765,2]
[426697795,1782749451000,-300.0,0.00033765,2]
[426697789,1782749451000,-300.0,0.00033765,2]
[426697785,1782749451000,-160.59292995,0.00033762,30]
[426697793,1782749451000,-300.0,0.00033765,2]
[426697790,1782749451000,-569.01654071,0.00033765,2]
[426697794,1782749451000,-300.0,0.00033765,2]
[426697768,1782749451000,-1000.0,0.00033735,2]
[426697784,1782749451000,-588.0,0.00033762,30]
[426697766,1782749451000,-1737.06,0.00033734,7]
[426697756,1782749451000,-166.0,0.00033656,7]
[426697765,1782749451000,-188.59370699,0.00033734,7]
[426697809,1782749451000,-250.0,0.00033772,7]
[426697744,1782749451000,-935.0,0.00033457,2]
[426697740,1782749451000,-200.0,0.000334,8]
[426697739,1782749451000,-2065.71,0.000334,30]
[426697738,1782749451000,-333.83,0.00033329,120]
[426697741,1782749451000,-283.0,0.0003341,2]
[426697742,1782749451000,-1278.0,0.0003341,2]
[426697743,1782749451000,-1230.0,0.00033419,2]
[426697746,1782749451000,-151.0,0.00033497,14]
[426697751,1782749451000,-800.0,0.000335,5]
[426697754,1782749451000,-151.09934801,0.00033609,2]
[426697753,1782749451000,-582.93795227,0.00033595,2]
[426697749,1782749451000,-1239.20700929,0.000335,2]
[426697769,1782749451000,-1000.0,0.00033735,2]
[426697748,1782749451000,-1580.07,0.000335,30]
[426697757,1782749451000,-65502.75413252,0.0003366,2]
[426697745,1782749451000,-6087.0,0.00033457,2]
[426697752,1782749451000,-910.81,0.00033518,2]
[426697750,1782749451000,-800.0,0.000335,5]
[426697755,1782749451000,-910.81,0.00033643,2]
[426697758,1782749451000,-401.448,0.00033667,7]
[426697762,1782749451000,-500.0,0.00033669,120]
[426697763,1782749451000,-355.95930415,0.00033669,120]
[426697760,1782749451000,-2280.56935788,0.00033667,7]
[426697759,1782749451000,-431.5566,0.00033667,7]
[426697764,1782749451000,-263334.0,0.0003367,30]
[426697761,1782749451000,-500.0,0.00033669,120]
[426697770,1782749451000,-1000.0,0.00033735,2]
[426697747,1782749451000,-10351.40320883,0.000335,2]
[426697808,1782749451000,-446.09705538,0.00033765,2]
[426697853,1782749451000,-300.0,0.00033802,2]
[426697801,1782749451000,-454.26701287,0.00033765,2]
[426697832,1782749451000,-607.84242655,0.00033802,2]
[426697835,1782749451000,-300.0,0.00033802,2]
[426697838,1782749451000,-536.77715252,0.00033802,2]
[426697837,1782749451000,-300.0,0.00033802,2]
[426697839,1782749451000,-300.0,0.00033802,2]
[426697836,1782749451000,-300.0,0.00033802,2]
[426697841,1782749451000,-730.12015411,0.00033802,2]
[426697847,1782749451000,-300.0,0.00033802,2]
[426697845,1782749451000,-300.0,0.00033802,2]
[426697842,1782749451000,-300.0,0.00033802,2]
[426697843,1782749451000,-300.0,0.00033802,2]
[426697844,1782749451000,-303.73373497,0.00033802,2]
[426697840,1782749451000,-300.0,0.00033802,2]
[426697830,1782749451000,-300.0,0.00033802,2]
[426697849,1782749451000,-300.0,0.00033802,2]
[426697859,1782749451000,-300.0,0.00033802,2]
[426697848,1782749451000,-300.0,0.00033802,2]
[426697851,1782749451000,-300.0,0.00033802,2]
[426697797,1782749451000,-513.95923093,0.00033765,2]
[426697855,1782749451000,-345.7536,0.00033802,2]
[426697857,1782749451000,-300.0,0.00033802,2]
[426697850,1782749451000,-300.0,0.00033802,2]
[426697858,1782749451000,-300.0,0.00033802,2]
[426697852,1782749451000,-300.0,0.00033802,2]
[426697856,1782749451000,-300.0,0.00033802,2]
[426697854,1782749451000,-300.0,0.00033802,2]
[426697861,1782749451000,-1807.30940739,0.00033802,2]
[426697862,1782749451000,-300.0,0.00033802,2]
[426697860,1782749451000,-954.30228826,0.00033802,2]
[426697827,1782749451000,-368.9698289,0.00033802,2]
[426697846,1782749451000,-302.16203863,0.00033802,2]
[426697824,1782749451000,-300.0,0.00033802,2]
[426697800,1782749451000,-300.0,0.00033765,2]
[426697799,1782749451000,-584.66801755,0.00033765,2]
[426697807,1782749451000,-300.0,0.00033765,2]
[426697802,1782749451000,-300.0,0.00033765,2]
[426697805,1782749451000,-300.0,0.00033765,2]
[426697829,1782749451000,-300.0,0.00033802,2]
[426697804,1782749451000,-300.0,0.00033765,2]
[426697806,1782749451000,-300.0,0.00033765,2]
[426697810,1782749451000,-3571.0,0.00033773,10]
[426697812,1782749451000,-152.5674494,0.00033775,60]
[426697818,1782749451000,-300.0,0.00033802,2]
[426697821,1782749451000,-300.0,0.00033802,2]
[426697811,1782749451000,-955.7894779,0.00033775,60]
[426697817,1782749451000,-300.0,0.00033802,2]
[426697803,1782749451000,-300.0,0.00033765,2]
[426697819,1782749451000,-300.0,0.00033802,2]
[426697815,1782749451000,-300.0,0.00033802,2]
[426697825,1782749451000,-495.28773916,0.00033802,2]
[426697826,1782749451000,-300.0,0.00033802,2]
[426697831,1782749451000,-300.0,0.00033802,2]
[426697834,1782749451000,-300.0,0.00033802,2]
[426697822,1782749451000,-300.0,0.00033802,2]
[426697828,1782749451000,-300.0,0.00033802,2]
[426697823,1782749451000,-300.0,0.00033802,2]
[426697814,1782749451000,-300.0,0.00033802,2]
[426697820,1782749451000,-300.0,0.00033802,2]
[426697813,1782749451000,-176.4163442,0.00033775,60]
[426697816,1782749451000,-300.0,0.00033802,2]
[426697833,1782749451000,-300.0,0.00033802,2]
[426697890,1782749452000,-300.0,0.00033802,2]
[426697888,1782749452000,-300.0,0.00033802,2]
[426697893,1782749452000,-1101.0618519,0.00033802,2]
[426697885,1782749452000,-446.09705538,0.00033802,2]
[426697889,1782749452000,-300.0,0.00033802,2]
[426697887,1782749452000,-300.0,0.00033802,2]
[426697891,1782749452000,-300.0,0.00033802,2]
[426697892,1782749452000,-300.0,0.00033802,2]
[426697894,1782749452000,-300.0,0.00033802,2]
[426697899,1782749452000,-300.0,0.00033802,2]
[426697897,1782749452000,-300.0,0.00033802,2]
[426697895,1782749452000,-300.0,0.00033802,2]
[426697898,1782749452000,-300.0,0.00033802,2]
[426697900,1782749452000,-300.0,0.00033802,2]
[426697901,1782749452000,-300.0,0.00033802,2]
[426697903,1782749452000,-300.0,0.00033802,2]
[426697904,1782749452000,-300.0,0.00033802,2]
[426697905,1782749452000,-300.0,0.00033802,2]
[426697896,1782749452000,-300.0,0.00033802,2]
[426697886,1782749452000,-300.0,0.00033802,2]
[426697906,1782749452000,-495.28773916,0.00033802,2]
[426697882,1782749452000,-300.0,0.00033802,2]
[426697864,1782749452000,-576.43989485,0.00033802,2]